bitfinex/quotes_SOLUSD_20241127
["timestamp","ask_amount","ask_price","bid_price","bid_amount"]
[1732723332157,5.0,240.81,240.67,5.16048987]
[1732723332343,5.0,240.79,240.74,20.0]
[1732723332666,5.0,240.84,240.76,23.776884]
[1732723332860,5.0,240.85,240.77,0.82830824]
[1732723333168,5.0,240.81,240.77,0.82830824]
[1732723333555,5.0,240.85,240.78,24.1531]
[1732723333779,5.0,240.85,240.79,0.82830108]
[1732723333973,5.0,240.87,240.79,0.82830108]
[1732723334270,5.0,240.89,240.83,20.0]
[1732723334476,5.0,240.9,240.81,20.0]
[1732723334653,5.0,240.9,240.83,23.776884]
[1732723334844,5.0,240.9,240.84,0.82807744]
[1732723335044,15.0463,240.91,240.88,20.0]
[1732723335257,5.0,240.92,240.88,20.0]
[1732723335473,5.0,240.92,240.89,4.1512]
[1732723335675,15.4129,240.97,240.9,23.776884]
[1732723335880,5.0,241.0,240.94,23.776884]
[1732723336081,15.9356,241.04,240.97,20.0]
[1732723336374,5.0,241.01,240.98,0.82762012]
[1732723336552,5.0,240.96,240.89,14.5293]
[1732723336752,5.0,240.96,240.92,20.0]
[1732723336946,0.5730516,241.03,240.92,20.0]
[1732723336947,5.0,240.94,240.92,20.0]
[1732723337152,5.0,240.91,240.89,4.1512]
[1732723337678,5.0,240.91,240.86,4.1517]
[1732723338167,5.0,240.91,240.86,316.1517]
[1732723338368,5.0,240.91,240.86,4.1517]
[1732723338675,5.0,240.91,240.88,20.0]
[1732723339168,5.0,240.9,240.88,20.0]
[1732723339349,5.0,240.9,240.86,4.97972536]
[1732723339350,5.0,240.9,240.86,4.1517]
[1732723339762,5.0,240.92,240.86,4.1517]
[1732723339971,5.0,240.9,240.87,19.96996]
[1732723340163,5.0,240.95,240.87,19.96996]
[1732723340374,2.6476516,241.01,240.87,19.96996]
[1732723340375,5.0,240.9,240.87,20.79796086]
[1732723340568,5.0,240.9,240.87,19.96996]
[1732723341053,5.0,240.9,240.88,4.1514]
[1732723341548,0.5730516,241.01,240.85,312.82800086]
[1732723341549,5.0,240.87,240.85,312.0]
[1732723341753,5.0,240.87,240.8,4.1528]
[1732723341953,5.0,240.95,240.8,15.36300251]
[1732723342159,5.0,240.9,240.8,19.69515811]
[1732723342356,5.0,240.88,240.8,19.69515811]
[1732723343273,5.0,240.97,240.81,23.776884]
[1732723343452,5.0,241.03,240.85,23.776884]
[1732723343656,5.0,241.06,240.89,23.776884]
[1732723343954,5.0,241.02,241.0,20.0]
[1732723344264,5.0,240.98,240.94,23.776884]
[1732723344454,5.0,240.98,240.93,20.0]
[1732723344778,5.0,241.03,240.94,0.82785167]
[1732723344961,5.0,241.03,240.85,1.86033838]
[1732723344962,5.0,241.07,240.95,20.82768432]
[1732723345275,5.0,241.07,240.99,20.0]
[1732723345476,5.0,240.97,240.96,4.15]
[1732723345676,5.0,240.97,240.84,14.5324]
[1732723345860,5.0,240.97,240.85,0.66894532]
[1732723346584,5.0,240.95,240.85,0.66894532]
[1732723346785,5.0,240.95,240.86,59.066184]
[1732723347079,5.0,240.98,240.88,23.776884]
[1732723347275,5.0,240.98,240.89,0.6689851]
[1732723347477,5.0,240.99,240.9,23.776884]
[1732723347668,5.0,240.95,240.92,23.776884]
[1732723347866,5.0,240.95,240.94,20.0]
[1732723348473,5.0,240.95,240.92,23.776884]
[1732723348474,5.0,240.93,240.86,14.5311]
[1732723348678,5.0,240.89,240.86,14.5311]
[1732723348976,5.0,240.93,240.82,14.5335]
[1732723349276,5.0,240.93,240.83,0.66928918]
[1732723349455,5.0,240.9,240.83,0.66928918]
[1732723349975,21.6033,240.93,240.83,0.66928918]
[1732723350363,5.0,240.91,240.83,0.66928918]
[1732723350567,5.0,240.88,240.83,0.66928918]
[1732723350753,5.0,240.88,240.84,4.1521]
[1732723350956,5.0,240.92,240.85,24.44647165]
[1732723351355,16.6033,240.93,240.85,24.44647165]
[1732723351585,5.0,240.94,240.85,24.44647165]
[1732723351882,5.0,240.94,240.85,28.68680847]
[1732723352093,16.654,241.0,240.89,23.776884]
[1732723352382,21.654,241.0,240.97,23.776884]
[1732723352873,21.654,241.0,240.98,4.1497]
[1732723353085,5.0,241.04,240.99,23.776884]
[1732723353264,5.0,241.03,240.99,23.776884]
[1732723353469,5.0,241.05,240.99,23.776884]
[1732723353665,5.0,241.05,241.03,23.776884]
[1732723354072,5.0,241.08,241.03,23.776884]
[1732723354283,5.0,241.05,241.03,23.776884]
[1732723354877,5.0,241.11,241.03,24.44499021]
[1732723355055,5.0,241.11,241.05,23.776884]
[1732723355259,5.0,241.11,241.05,24.44470013]
[1732723355456,5.0,241.07,241.05,23.776884]
[1732723356080,5.0,241.09,241.05,23.776884]
[1732723356261,5.0,241.11,241.05,23.776884]
[1732723356465,5.0,241.06,241.05,23.776884]
[1732723357363,5.0,241.1,241.07,23.776884]
[1732723357588,5.0,241.12,241.07,23.776884]
[1732723357774,16.039,241.15,241.09,23.776884]
[1732723357775,21.039,241.15,241.09,23.776884]
[1732723357958,16.039,241.15,241.11,23.776884]
[1732723358466,5.0,241.13,241.11,23.776884]
[1732723359185,16.039,241.15,241.13,23.776884]
[1732723359365,21.039,241.15,241.13,23.776884]
[1732723359687,16.039,241.15,241.13,23.776884]
[1732723359982,5.0,241.2,241.13,23.776884]
[1732723360164,16.5229,241.21,241.17,23.776884]
[1732723360165,5.0,241.18,241.17,23.776884]
[1732723360367,21.5229,241.21,241.17,23.776884]
[1732723360596,5.0,241.18,241.17,23.776884]
[1732723360966,5.0,241.14,241.12,4.1473]
[1732723361303,5.0,241.12,241.07,10.37]
[1732723361482,5.0,241.08,241.04,4.1486]
[1732723361667,5.0,241.05,240.97,4.1498]
[1732723361860,5.0,241.0,240.97,4.1498]
[1732723362092,5.0,241.02,240.97,4.1498]
[1732723362964,5.0,241.02,240.94,0.6685074]
[1732723362965,5.0,241.05,240.98,20.66851833]
[1732723363162,15.5637,241.13,240.98,20.66851833]
[1732723363163,5.0,241.07,240.98,20.66851833]
[1732723363589,5.0,241.03,241.02,23.776884]
[1732723363796,15.5637,241.13,240.95,14.5257]
[1732723363797,5.0,240.99,240.95,4.1502]
[1732723364293,27.09,240.98,240.95,4.1502]
[1732723364474,5.0,240.97,240.95,4.1502]
[1732723364674,27.09,240.98,240.95,4.1502]
[1732723364881,32.09,240.98,240.95,4.1502]
[1732723365200,27.09,240.98,240.94,23.776884]
[1732723365397,27.09,240.98,240.93,11.04494849]
[1732723365688,27.09,240.98,240.96,20.0]
[1732723366097,5.0,240.97,240.93,10.3761]
[1732723366265,27.09,240.98,240.91,4.1509]
[1732723366266,5.0,240.94,240.91,4.1509]
[1732723366774,5.0,240.92,240.91,4.1509]
[1732723367066,5.0,240.96,240.89,0.66935196]
[1732723367270,5.0,240.95,240.89,0.66935196]
[1732723367467,27.09,240.98,240.89,0.66935196]
[1732723367664,27.09,240.98,240.91,20.0]
[1732723367892,5.0,240.94,240.91,20.0]
[1732723368070,5.0,240.96,240.91,20.0]
[1732723368397,5.0,240.96,240.91,20.66907362]
[1732723369281,27.09,240.98,240.91,20.66907362]
[1732723369282,27.09,240.98,240.97,23.776884]
[1732723370176,32.09,240.98,240.97,23.776884]
[1732723370983,5.0,240.94,240.88,14.53]
[1732723371290,5.0,240.96,240.9,23.776884]
[1732723371496,32.09,240.98,240.92,23.776884]
[1732723371999,5.0,240.93,240.92,23.776884]
[1732723372176,27.09,240.98,240.96,23.776884]
[1732723372574,22.1103,240.98,240.96,24.44564822]
[1732723372878,27.1103,240.98,240.96,23.776884]
[1732723373078,27.1103,240.98,240.97,4.1498]
[1732723373798,22.1103,240.98,240.97,27.926684]
[1732723374168,27.1103,240.98,240.97,27.926684]
[1732723377179,5.0,240.96,240.94,4.1503]
[1732723378084,5.0,240.96,240.88,10.3783]
[1732723378290,5.0,240.9,240.88,10.3783]
[1732723378785,22.1103,240.98,240.91,20.0]
[1732723378786,5.0,240.92,240.91,20.0]
[1732723379498,5.0,240.92,240.91,23.776884]
[1732723379794,5.0,240.89,240.88,10.3783]
[1732723380207,15.0218,240.93,240.82,4.1524]
[1732723380208,5.0,240.83,240.82,4.1524]
[1732723380699,5.0,240.85,240.82,4.1524]
[1732723380915,5.0,240.84,240.82,14.5335]
[1732723381090,5.0,240.87,240.82,14.5335]
[1732723381601,5.0,240.9,240.89,20.0]
[1732723381804,5.0,240.9,240.89,43.776884]
[1732723382008,5.0,240.9,240.82,14.5335]
[1732723382181,5.0,240.84,240.77,20.0]
[1732723382382,5.0,240.84,240.78,20.0]
[1732723382608,5.0,240.8,240.78,20.0]
[1732723382784,5.0,240.8,240.75,14.5378]
[1732723382982,5.0,240.77,240.75,14.5378]
[1732723383397,5.0,240.79,240.75,14.5378]
[1732723383606,5.0,240.76,240.75,14.5378]
[1732723384099,5.0,240.75,240.7,14.5408]
[1732723384302,5.0,240.73,240.7,14.5408]
[1732723384616,16.3893,240.8,240.7,14.5408]
[1732723384617,5.0,240.71,240.7,14.5408]
[1732723384986,5.0,240.71,240.7,4.1545]
[1732723385501,5.0,240.75,240.7,14.5408]
[1732723385806,5.0,240.72,240.7,14.5408]
[1732723386209,5.0,240.72,240.7,10.3863]
[1732723386388,5.0,240.69,240.67,4.155]
[1732723387586,15.2736,240.68,240.67,4.155]
[1732723388188,15.2736,240.68,240.58,14.5481]
[1732723388392,16.1468,240.73,240.59,6.03851788]
[1732723388791,16.1468,240.73,240.59,0.6717752]
[1732723388991,1.0360362,240.72,240.59,0.6717752]
[1732723389189,1.0360362,240.72,240.59,0.67157836]
[1732723389416,1.03604511,240.72,240.59,0.67157836]
[1732723389619,1.03604511,240.72,240.61,20.0]
[1732723390187,1.03604511,240.72,240.62,14.5457]
[1732723390403,16.1468,240.73,240.65,20.0]
[1732723390998,16.1468,240.73,240.66,23.776884]
[1732723391204,1.0360008,240.72,240.66,23.776884]
[1732723391608,1.0360008,240.72,240.62,14.5457]
[1732723392311,1.0360008,240.72,240.62,10.3898]
[1732723392810,1.0360008,240.72,240.63,23.776884]
[1732723393997,1.0360008,240.72,240.61,23.776884]
[1732723394216,5.0,240.69,240.58,4.1566]
[1732723394392,16.1849,240.67,240.58,4.1566]
[1732723394587,1.03652859,240.66,240.58,4.1566]
[1732723395208,6.03652859,240.66,240.58,4.1566]
[1732723395414,1.03652859,240.66,240.58,4.1566]
[1732723396582,6.03652859,240.66,240.58,4.1566]
[1732723397014,1.03652859,240.66,240.58,4.1566]
[1732723397598,6.03652859,240.66,240.58,4.1566]
[1732723398285,6.03652859,240.66,240.59,23.776884]
[1732723398485,6.03652859,240.66,240.57,24.2759742]
[1732723398486,8.11412859,240.66,240.57,24.2759742]
[1732723398700,5.0,240.61,240.57,0.4990902]
[1732723398896,15.2143,240.59,240.57,0.4990902]
[1732723399106,1.03685637,240.58,240.57,0.4990902]
[1732723399419,1.03685575,240.61,240.57,4.6557902]
[1732723399618,5.0,240.64,240.57,4.6557902]
[1732723399919,1.03662555,240.63,240.57,0.4990902]
[1732723400488,3.11452555,240.63,240.57,0.4990902]
[1732723401707,5.0,240.62,240.57,0.4990902]
[1732723401905,1.03679315,240.61,240.57,0.4990902]
[1732723402415,1.03679315,240.61,240.57,4.6557902]
[1732723402598,3.11432183,240.65,240.57,4.6557902]
[1732723402800,5.0,240.64,240.57,0.4990902]
[1732723402991,6.03673835,240.63,240.57,0.4990902]
[1732723403195,1.03673835,240.63,240.57,0.4990902]
[1732723403512,10.0,240.62,240.57,0.4990902]
[1732723403696,1.03681489,240.61,240.57,0.4990902]
[1732723403892,5.0,240.58,240.45,1.90366054]
[1732723404114,1.03696784,240.57,240.48,14.1583]
[1732723404295,1.03696784,240.57,240.48,10.0]
[1732723404613,1.03696784,240.57,240.48,14.1583]
[1732723404990,1.03696784,240.57,240.48,10.0]
[1732723404991,16.3823,240.54,240.48,10.0]
[1732723405190,1.03718001,240.53,240.48,14.1583]
[1732723405918,16.3823,240.54,240.48,14.1583]
[1732723406125,1.0368508,240.53,240.48,14.1583]
[1732723406423,1.0368508,240.53,240.49,23.776884]
[1732723406716,1.03685276,240.53,240.49,23.776884]
[1732723406914,1.03685276,240.53,240.49,27.934884]
[1732723407118,1.03685276,240.53,240.48,10.0]
[1732723407299,3.11555276,240.53,240.48,10.0]
[1732723407917,1.03685276,240.53,240.48,10.0]
[1732723408795,1.03685276,240.53,240.48,14.1583]
[1732723409830,1.03685276,240.53,240.48,10.0]
[1732723410705,1.03685276,240.53,240.48,14.1581]
[1732723411024,1.0368833,240.58,240.52,20.0]
[1732723411197,16.6473,240.59,240.53,23.776884]
[1732723411516,1.03661423,240.58,240.52,23.776884]
[1732723411700,1.03661423,240.58,240.51,20.0]
[1732723412815,1.03661423,240.58,240.49,23.776884]
[1732723413012,1.03661423,240.58,240.5,4.158]
[1732723413598,1.03661423,240.58,240.51,23.776884]
[1732723413802,11.2312,240.67,240.51,23.776884]
[1732723413803,1.03676645,240.64,240.54,20.0]
[1732723414017,17.10268101,240.66,240.58,20.0]
[1732723414321,16.0662,240.66,240.59,23.776884]
[1732723415109,16.0662,240.66,240.61,23.776884]
[1732723415524,16.94717628,240.72,240.64,20.0]
[1732723415727,15.9108,240.72,240.65,23.776884]
[1732723416020,15.9108,240.72,240.68,20.0]
[1732723416329,15.0483,240.78,240.69,23.776884]
[1732723416700,15.0483,240.78,240.64,23.776884]
[1732723416701,1.03587542,240.77,240.64,23.776884]
[1732723416896,1.03587542,240.77,240.68,23.776884]
[1732723417101,1.03587542,240.77,240.68,27.931584]
[1732723417525,16.08421386,240.78,240.68,28.60283228]
[1732723417722,1.03581221,240.77,240.68,28.60283228]
[1732723417927,1.03581221,240.77,240.68,27.931584]
[1732723418510,1.03581221,240.77,240.68,23.776884]
[1732723419028,1.03581221,240.77,240.68,27.931684]
[1732723419404,1.03582723,240.77,240.68,27.931684]
[1732723419801,1.03582723,240.77,240.59,0.67146259]
[1732723420006,1.03582723,240.77,240.61,20.0]
[1732723420206,1.03582723,240.77,240.6,4.1562]
[1732723420430,5.0,240.74,240.56,4.1569]
[1732723420623,1.03624675,240.73,240.56,14.5493]
[1732723421135,5.0,240.74,240.56,15.22129622]
[1732723421306,6.1427,240.72,240.56,4.1569]
[1732723421634,15.1196,240.7,240.56,4.1569]
[1732723421814,1.03644743,240.69,240.56,4.1569]
[1732723422233,5.0,240.67,240.51,4.1578]
[1732723422420,6.03664167,240.66,240.51,4.1578]
[1732723422607,1.03664167,240.66,240.49,7.95055904]
[1732723422802,1.03664167,240.66,240.49,18.34595904]
[1732723423028,1.03658936,240.69,240.5,0.67259927]
[1732723423329,3.11398936,240.69,240.51,14.5523]
[1732723423720,3.11398936,240.69,240.52,23.776884]
[1732723424032,3.11398936,240.69,240.59,20.0]
[1732723424237,3.11398936,240.69,240.51,14.5523]
[1732723424409,3.11398936,240.69,240.55,23.776884]
[1732723424609,3.11398936,240.69,240.58,20.0]
[1732723425022,1.03658936,240.69,240.58,20.0]
[1732723425230,15.1196,240.7,240.63,23.276884]
[1732723425622,1.03610224,240.69,240.59,24.1564]
[1732723427132,1.03610224,240.69,240.6,20.0]
[1732723427331,1.03610224,240.69,240.59,20.0]
[1732723427628,3.11340224,240.69,240.61,20.0]
[1732723427830,3.11340224,240.69,240.59,20.0]
[1732723428032,3.11340224,240.69,240.59,24.1564]
[1732723428415,3.11340224,240.69,240.61,20.0]
[1732723428936,3.11340224,240.69,240.56,4.1569]
[1732723429143,3.11340224,240.69,240.5,7.18826169]
[1732723429335,3.11340224,240.69,240.51,14.5523]
[1732723429525,3.11340224,240.69,240.52,0.67230129]
[1732723429943,3.11340224,240.69,240.51,14.5523]
[1732723430316,8.30680224,240.69,240.54,20.0]
[1732723430736,3.11340224,240.69,240.54,20.0]
[1732723431448,3.11340224,240.69,240.52,23.776884]
[1732723431449,5.0,240.68,240.52,23.776884]
[1732723431640,1.03656454,240.67,240.52,23.776884]
[1732723431945,5.0,240.66,240.52,23.776884]
[1732723432141,1.03664352,240.65,240.48,10.0]
[1732723432347,2.0777,240.64,240.49,4.1581]
[1732723432525,1.03664405,240.63,240.49,4.1581]
[1732723433037,1.03664405,240.63,240.51,20.0]
[1732723433215,1.03664405,240.63,240.52,4.1576]
[1732723433422,1.03653825,240.65,240.53,20.0]
[1732723433638,1.03653825,240.65,240.58,23.776884]
[1732723433851,1.03641003,240.69,240.58,23.776884]
[1732723434138,3.11371003,240.69,240.58,23.776884]
[1732723434754,3.11371003,240.69,240.61,20.0]
[1732723435122,8.30711003,240.69,240.54,4.1572]
[1732723435623,3.11371003,240.69,240.54,4.1572]
[1732723436446,3.11371003,240.69,240.58,20.0]
[1732723437120,3.11371003,240.69,240.56,24.1569]
[1732723437323,3.11371003,240.69,240.56,4.1569]
[1732723437646,3.11371003,240.69,240.55,23.776884]
[1732723438029,20.0,240.67,240.53,23.776884]
[1732723438344,20.0,240.64,240.57,19.90690799]
[1732723438535,1.0366286,240.63,240.57,19.90690799]
[1732723439342,1.0366286,240.63,240.55,19.90690799]
[1732723439343,2.0779,240.62,240.55,19.90690799]
[1732723439544,25.98850799,240.6,240.51,19.90690799]
[1732723439845,1.03685024,240.59,240.53,19.90690799]
[1732723440424,1.03685024,240.59,240.48,34.06520799]
[1732723440425,1.03685024,240.59,240.55,19.90690799]
[1732723441626,1.03666072,240.61,240.57,19.90690799]
[1732723441822,1.03659281,240.64,240.6,19.90690799]
[1732723442043,1.03650126,240.67,240.62,19.90690799]
[1732723442254,1.03630917,240.69,240.64,19.90690799]
[1732723442749,2.0775,240.67,240.62,19.90690799]
[1732723442936,1.03639432,240.66,240.62,19.90690799]
[1732723443135,1.03638459,240.69,240.64,19.90690799]
[1732723443340,21.98370799,240.76,240.64,19.90690799]
[1732723443341,1.03616904,240.75,240.68,19.90690799]
[1732723443541,15.6046,240.76,240.74,19.90690799]
[1732723445234,17.11443125,240.82,240.74,19.90690799]
[1732723445425,17.11443125,240.82,240.8,19.90690799]
[1732723445746,19.19063125,240.82,240.74,19.90690799]
[1732723445945,19.19063125,240.82,240.76,19.90690799]
[1732723447072,17.11443125,240.82,240.78,19.90690799]
[1732723447349,16.0786,240.82,240.8,19.90690799]
[1732723447656,1.03558119,240.81,240.78,19.90690799]
[1732723447858,16.0786,240.82,240.8,19.90690799]
[1732723448354,1.03557821,240.81,240.76,19.90690799]
[1732723448858,3.11187821,240.81,240.74,19.90690799]
[1732723449053,20.0,240.79,240.74,19.90690799]
[1732723449254,1.03583516,240.78,240.74,19.90690799]
[1732723450055,16.0786,240.82,240.76,19.90690799]
[1732723450231,16.0786,240.82,240.8,19.90690799]
[1732723450550,1.03561496,240.81,240.76,19.90690799]
[1732723450932,3.11191496,240.81,240.76,19.90690799]
[1732723451131,20.0,240.79,240.74,19.90690799]
[1732723451459,1.03580352,240.78,240.74,19.90690799]
[1732723451952,1.03580352,240.78,240.7,19.90690799]
[1732723452144,20.0,240.73,240.66,19.90690799]
[1732723452457,20.0,240.71,240.64,19.90690799]
[1732723452758,1.03621699,240.7,240.66,19.90690799]
[1732723453135,6.6348,240.77,240.68,19.90690799]
[1732723453347,20.0,240.74,240.67,19.90690799]
[1732723453526,20.0,240.72,240.67,19.90690799]
[1732723453729,20.0,240.7,240.65,19.90690799]
[1732723453955,16.45901509,240.69,240.65,19.90690799]
[1732723454142,16.45901509,240.69,240.63,19.90690799]
[1732723454739,16.45901509,240.69,240.65,19.90690799]
[1732723455052,15.4228,240.69,240.65,19.90690799]
[1732723455254,20.0,240.66,240.48,20.0]
[1732723455431,1.03616513,240.68,240.62,19.90690799]
[1732723455629,1.03616513,240.68,240.64,19.90690799]
[1732723456160,20.0,240.66,240.6,19.90690799]
[1732723456458,22.6936,240.69,240.48,29.90690799]
[1732723456459,20.0,240.61,240.52,19.90690799]
[1732723456632,35.1891,240.57,240.5,19.90690799]
[1732723456831,35.1891,240.57,240.48,10.0]
[1732723456832,2.0786,240.54,240.48,29.90690799]
[1732723457028,1.03692342,240.53,240.48,29.90690799]
[1732723457258,21.03692342,240.53,240.48,10.0]
[1732723457432,21.03692342,240.53,240.48,29.90690799]
[1732723458969,20.0,240.54,240.52,19.90690799]
[1732723459251,15.1891,240.57,240.52,19.90690799]
[1732723459468,15.1891,240.57,240.56,19.90690799]
[1732723459935,20.0,240.6,240.56,19.90690799]
[1732723460130,20.0,240.6,240.58,19.90690799]
[1732723460753,15.9114,240.63,240.58,19.90690799]
[1732723460934,15.9114,240.63,240.61,19.90690799]
[1732723461959,20.0,240.6,240.57,19.90690799]
[1732723462134,1.0366232,240.59,240.55,19.90690799]
[1732723462338,21.0366232,240.59,240.53,19.90690799]
[1732723462941,23.1148232,240.59,240.53,19.90690799]
[1732723465640,21.0366232,240.59,240.55,19.90690799]
[1732723465860,1.0366232,240.59,240.53,19.90690799]
[1732723466059,23.1148232,240.59,240.53,19.90690799]
[1732723466855,23.1148232,240.59,240.51,19.90690799]
[1732723467068,20.0,240.53,240.49,19.90690799]
[1732723467248,3.11544241,240.55,240.49,19.90690799]
[1732723467440,3.11544241,240.55,240.48,10.0]
[1732723467441,20.0,240.53,240.48,10.0]
[1732723467635,20.0,240.51,240.48,10.0]
[1732723467849,20.0,240.49,240.48,10.0]
[1732723468959,1.03704281,240.53,240.48,10.0]
[1732723469171,2.0789,240.51,240.48,10.0]
[1732723469341,3.11592472,240.51,240.48,10.0]
[1732723469535,23.11592472,240.51,240.48,10.0]
[1732723471072,20.0,240.49,240.48,10.0]
[1732723471249,23.1162607,240.49,240.48,10.0]
[1732723475078,23.1162607,240.49,240.37,19.90690799]
[1732723475079,20.0,240.46,240.37,19.90690799]
[1732723475251,20.0,240.43,240.37,19.90690799]
[1732723475449,1.03749628,240.42,240.37,19.90690799]
[1732723475663,21.03749628,240.42,240.37,19.90690799]
[1732723476174,1.03749628,240.42,240.37,19.90690799]
[1732723476352,2.0797,240.41,240.37,19.90690799]
[1732723476547,1.03752327,240.4,240.35,19.90690799]
[1732723477364,20.0,240.39,240.35,19.90690799]
[1732723477546,1.03762061,240.38,240.35,19.90690799]
[1732723477747,1.03762061,240.38,240.33,20.40599819]
[1732723477949,20.0,240.37,240.33,20.40599819]
[1732723478249,3.11787266,240.36,240.33,0.4990902]
[1732723478974,15.2897,240.35,240.33,0.4990902]
[1732723479268,1.03768164,240.34,240.33,0.4990902]
[1732723479469,16.32740184,240.35,240.33,0.4990902]
[1732723480245,18.40770184,240.35,240.33,0.4990902]
[1732723483561,16.32740184,240.35,240.33,0.4990902]
[1732723483757,1.03778882,240.34,240.33,0.4990902]
[1732723483960,21.03769845,240.36,240.33,0.4990902]
[1732723484478,23.11789845,240.36,240.33,0.4990902]
[1732723484775,20.0,240.35,240.33,0.4990902]
[1732723485068,1.03773908,240.34,240.33,0.4990902]
[1732723485268,21.03771297,240.35,240.33,0.4990902]
[1732723486857,2.0802,240.36,240.34,12.47055109]
[1732723486858,1.03767144,240.36,240.34,12.47055109]
[1732723487181,1.03761926,240.4,240.34,12.47055109]
[1732723487473,1.03761926,240.4,240.38,12.47055109]
[1732723487683,1.03744959,240.45,240.38,12.47055109]
[1732723487885,3.11684959,240.45,240.38,12.47055109]
[1732723489092,1.03744959,240.45,240.4,12.47055109]
[1732723489256,1.03719279,240.47,240.4,12.47055109]
[1732723489665,1.03719279,240.47,240.42,12.47055109]
[1732723489957,1.03714849,240.49,240.42,12.47055109]
[1732723490156,3.11624849,240.49,240.42,12.47055109]
[1732723491357,12.47055109,240.45,240.38,12.47055109]
[1732723491565,1.03731012,240.44,240.38,12.47055109]
[1732723492272,1.03730873,240.46,240.38,12.47055109]
[1732723493676,12.47055109,240.43,240.3,4.83534079]
[1732723493976,1.03750386,240.42,240.34,12.47055109]
[1732723494588,1.03750386,240.42,240.28,12.47055109]
[1732723494589,12.47055109,240.37,240.28,12.47055109]
[1732723494878,20.0,240.34,240.28,12.47055109]
[1732723495080,20.0,240.34,240.22,4.1628]
[1732723495261,20.0,240.34,240.26,12.47055109]
[1732723495463,23.11818794,240.34,240.26,12.47055109]
[1732723496406,23.11818794,240.34,240.21,19.95822102]
[1732723496560,20.0,240.32,240.21,19.95822102]
[1732723496762,19.95822102,240.29,240.21,19.95822102]
[1732723497065,20.0,240.26,240.2,19.95822102]
[1732723497276,1.03806757,240.25,240.2,19.95822102]
[1732723497765,20.0,240.24,240.2,19.95822102]
[1732723497970,20.0,240.24,240.18,19.95822102]
[1732723498174,20.0,240.24,240.1,0.67563117]
[1732723498385,20.0,240.1,240.09,0.4990902]
[1732723499369,1.03867012,240.15,240.09,20.45731122]
[1732723499682,23.12012986,240.19,240.13,19.95822102]
[1732723499888,20.0,240.17,240.13,19.95822102]
[1732723500064,1.03848261,240.16,240.13,19.95822102]
[1732723500261,21.03847451,240.16,240.09,0.4990902]
[1732723500482,21.03857259,240.17,240.13,19.95822102]
[1732723500777,20.0,240.11,240.09,0.4990902]
[1732723501079,1.0388586,240.1,240.09,0.4990902]
[1732723501688,3.1212586,240.1,240.09,0.4990902]
[1732723502060,1.0388586,240.1,240.09,0.4990902]
[1732723502291,21.0388586,240.1,240.09,0.4990902]
[1732723504182,44.8157426,240.1,240.09,0.4990902]
[1732723504485,20.0,240.0,239.99,0.22472159]
[1732723505582,23.12260133,240.0,239.99,0.22472159]
[1732723505984,46.89948533,240.0,239.99,0.22472159]
[1732723506780,23.12260133,240.0,239.99,0.22472159]
[1732723507085,21.03930133,240.0,239.99,0.22472159]
[1732723507269,20.0,240.0,239.99,0.22472159]
[1732723507469,40.99770513,240.0,239.99,0.22472159]
[1732723507897,21.03948411,240.0,239.99,0.22472159]
[1732723508188,40.99770513,240.0,239.99,0.22472159]
[1732723508575,21.03948411,240.0,239.99,0.22472159]
[1732723509769,21.03948411,240.0,239.84,0.4990902]
[1732723509770,20.0,239.96,239.84,0.4990902]
[1732723509970,1.03960031,239.95,239.87,19.95822102]
[1732723510274,20.0,239.94,239.89,19.95822102]
[1732723510479,20.0,239.98,239.93,19.95822102]
[1732723510676,19.95822102,240.01,239.91,19.95822102]
[1732723510870,1.03919147,240.0,239.93,19.95822102]
[1732723511190,2.9560436,240.06,239.97,19.95822102]
[1732723511492,2.9560436,240.06,239.99,19.95822102]